Workbook

Sheet Welcome
A2: Circularity Workout with Macros
A5: This document is for training purposes only. Financial Edge accepts no responsibility or liability for any other purpose or usage.
A7: ="© "&YEAR(TODAY())&" Financial Edge Training" -> © 2026 Financial Edge Training
A8: www.fe.training

Sheet Info
A1: =Welcome!A2 -> Circularity Workout with Macros
A2: Workout Information
B4: Features | L4: Model Details
B5: ◦ | C5: Feature 1 | L5: Company name | N5: ABC Incorporated
B6: ◦ | C6: Feature 2 | L6: Date | N6: 2018-12-31
B7: ◦ | C7: Feature 3 | L7: Currency | N7: USD
L8: Units | N8: Millions
L9: Analyst Name | N9: Firstname Lastname
L10: Circular Switch
B13: Tab Structure | O13: Formatting
B14: Tab name here | D14: Tab description here
P15: Input
P16: Hard coded
P17: Formulas

Sheet Workout
A1: =Welcome!A2 -> Circularity Workout with Macros
A4: Workout
B5: Calculate the interest payable in each of the four years of the following project finance transaction, using a macro to resolve interest circularity
B7: Project Income | C7: 500
B8: Capital Expenditure | C8: 1200
B9: Until year | C9: 2
B10: Interest | C10: 0.1
B12: Year | D12: 1 | E12: 2 | F12: 3 | G12: 4
B13: Cash Flow:
B14: Project Income | D14: =IF(D12>$C$9,$C$7,0) -> 0 | E14: =IF(E12>$C$9,$C$7,0) -> 0 | F14: 500 | G14: 500
B15: Capital Expenditure | D15: =-IF(D12<=$C$9,$C$8,0) -> -1200 | E15: =-IF(E12<=$C$9,$C$8,0) -> -1200 | F15: =-IF(F12<=$C$9,$C$8,0) -> 0 | G15: 0
B16: Interest | D16: =-D30 -> -133.3333331 | E16: =-E30 -> -281.4814792 | F16: =-F30 -> -281.4814792 | G16: =-G30 -> -259.6296254
B17: Funding Gap | D17: =SUM(D14:D16) -> -1333.333333 | E17: =SUM(E14:E16) -> -1481.481479 | F17: =SUM(F14:F16) -> 218.5185208 | G17: 240.3703746
B18: Debt Drawdown | D18: =IF(D17<0,-D17,0) -> 1333.333333 | E18: =IF(E17<0,-E17,0) -> 1481.481479 | F18: =IF(F17<0,-F17,0) -> 0 | G18: =IF(G17<0,-G17,0) -> 0
D19: =SUM(D17:D18) -> 0 | E19: =SUM(E17:E18) -> 0 | F19: =SUM(F17:F18) -> 218.5185208 | G19: =SUM(G17:G18) -> 240.3703746
B20: Debt Repayments | D20: =-IF(D19>0,MIN(D19,D26),0) -> 0 | E20: =-IF(E19>0,MIN(E19,E26),0) -> 0 | F20: =-IF(F19>0,MIN(F19,F26),0) -> -218.5185208 | G20: =-IF(G19>0,MIN(G19,G26),0) -> -240.3703746
B21: Free Cash Flow | D21: =SUM(D19:D20) -> 0 | E21: =SUM(E19:E20) -> 0 | F21: =SUM(F19:F20) -> 0 | G21: =SUM(G19:G20) -> 0
B23: Debt Facility:
B24: Opening Balance | D24: =C28 -> 0 | E24: =D28 -> 1333.333333 | F24: =E28 -> 2814.814812 | G24: =F28 -> 2596.296292
B25: Drawdown | D25: =D18 -> 1333.333333 | E25: =E18 -> 1481.481479 | F25: =F18 -> 0 | G25: =G18 -> 0
D26: =SUM(D24:D25) -> 1333.333333 | E26: =SUM(E24:E25) -> 2814.814812 | F26: =SUM(F24:F25) -> 2814.814812 | G26: =SUM(G24:G25) -> 2596.296292
B27: Repayments | D27: =-MIN(D26,-D20) -> 0 | E27: =-MIN(E26,-E20) -> 0 | F27: -218.5185208 | G27: -240.3703746
B28: Closing Balance | C28: 0 | D28: =D27+D26 -> 1333.333333 | E28: =E27+E26 -> 2814.814812 | F28: =F27+F26 -> 2596.296292 | G28: =G27+G26 -> 2355.925917
B30: Interest | C30: =C10 -> 0.1 | D30: 133.3333331 | E30: 281.4814792 | F30: 281.4814792 | G30: 259.6296254
B31: Interest calculation | D31: =D26*$C$30 -> 133.3333333 | E31: =E26*$C$30 -> 281.4814812 | F31: 281.4814812 | G31: 259.6296292
B32: Difference vs row 30 above | D32: =D30-D31 -> -2.000000165e-07 | E32: =E30-E31 -> -2.000000165e-06 | F32: -2.000000165e-06 | G32: -3.800000343e-06
